bitfinex/quotes_BTCUSD_20230906
["timestamp","ask_amount","ask_price","bid_price","bid_amount"]
[1693958696505,0.11516409,25788.0,25787.0,2.48592008]
[1693958696733,0.02213092,25788.0,25787.0,2.50182008]
[1693958696951,0.02213092,25788.0,25787.0,2.50218008]
[1693958697162,0.02213092,25788.0,25787.0,2.50146008]
[1693958697377,0.02213092,25788.0,25787.0,2.50212008]
[1693958697581,0.02213092,25788.0,25787.0,2.50134008]
[1693958697787,0.002,25788.0,25787.0,2.50110008]
[1693958697994,0.002,25788.0,25787.0,2.50092008]
[1693958698204,0.002,25788.0,25787.0,2.50050008]
[1693958698406,0.002,25788.0,25787.0,2.50044008]
[1693958698580,0.002,25788.0,25787.0,2.50026008]
[1693958698786,0.002,25788.0,25787.0,2.50068008]
[1693958698999,0.002,25788.0,25787.0,2.50050008]
[1693958699237,0.02210323,25788.0,25787.0,2.49846008]
[1693958699407,0.02210323,25788.0,25787.0,2.49810008]
[1693958699590,0.02210323,25788.0,25787.0,2.49774008]
[1693958699790,0.02210323,25788.0,25787.0,2.49768008]
[1693958700057,0.02210323,25788.0,25787.0,2.49750008]
[1693958700263,0.02210323,25788.0,25787.0,2.49708008]
[1693958700467,0.02210323,25788.0,25787.0,2.49678008]
[1693958700673,0.002,25788.0,25787.0,2.49156008]
[1693958700877,0.002,25788.0,25787.0,2.49468008]
[1693958701322,0.002,25788.0,25787.0,2.49450008]
[1693958701533,0.002,25788.0,25787.0,2.49462008]
[1693958701744,0.002,25788.0,25787.0,2.49444008]
[1693958702164,0.002,25788.0,25787.0,2.49432008]
[1693958702374,0.002,25788.0,25787.0,2.49486008]
[1693958702585,0.002,25788.0,25787.0,2.62400008]
[1693958702790,0.002,25788.0,25787.0,2.63276008]
[1693958702999,0.002,25788.0,25787.0,2.64308008]
[1693958703203,0.002,25788.0,25787.0,2.64920008]
[1693958703405,0.002,25788.0,25787.0,2.65058008]
[1693958703609,0.002,25788.0,25787.0,2.64920008]
[1693958703797,0.002,25788.0,25787.0,2.65040008]
[1693958704005,0.002,25788.0,25787.0,2.65034008]
[1693958704203,0.002,25788.0,25787.0,2.64860008]
[1693958704408,0.002,25788.0,25787.0,2.64146008]
[1693958704609,0.002,25788.0,25787.0,3.163692]
[1693958704814,0.002,25788.0,25787.0,3.375692]
[1693958705023,0.04924079,25791.0,25788.0,0.12]
[1693958705230,0.04924079,25791.0,25790.0,0.1205]
[1693958705440,0.09303317,25794.0,25790.0,0.1205]
[1693958705441,0.09303317,25795.0,25790.0,1.28374]
[1693958705650,0.38664527,25794.0,25792.0,0.1205]
[1693958705854,0.38664527,25794.0,25793.0,1.744659]
[1693958705855,0.40675157,25794.0,25793.0,1.744659]
[1693958706060,0.0201063,25794.0,25793.0,2.538032]
[1693958706288,0.0201063,25794.0,25793.0,2.538752]
[1693958706496,0.0201063,25794.0,25793.0,2.543912]
[1693958706701,0.0201063,25794.0,25793.0,2.533052]
[1693958706903,0.001,25794.0,25793.0,2.695835]
[1693958707133,0.2128751,25796.0,25793.0,2.696675]
[1693958707343,0.52923484,25796.0,25794.0,0.1205]
[1693958707578,0.52923484,25796.0,25795.0,2.326032]
[1693958707790,0.47967844,25796.0,25795.0,2.326032]
[1693958708410,0.38664527,25796.0,25795.0,2.326032]
[1693958708590,0.39964527,25796.0,25795.0,2.394352]
[1693958708795,0.013,25796.0,25795.0,2.401852]
[1693958709034,0.018,25796.0,25795.0,2.401552]
[1693958709237,0.013,25796.0,25795.0,2.400592]
[1693958709440,0.022,25796.0,25795.0,2.402972]
[1693958709647,0.022,25796.0,25795.0,2.589852]
[1693958709941,0.022,25796.0,25795.0,2.590752]
[1693958710143,0.022,25796.0,25795.0,2.590692]
[1693958710565,0.022,25796.0,25795.0,2.589612]
[1693958710741,0.022,25796.0,25795.0,2.590272]
[1693958710948,0.022,25796.0,25795.0,2.589432]
[1693958711356,0.022,25796.0,25795.0,2.589792]
[1693958711716,0.022,25796.0,25795.0,2.590752]
[1693958711932,0.022,25796.0,25795.0,2.591172]
[1693958712133,0.022,25796.0,25795.0,2.591352]
[1693958712463,0.022,25796.0,25795.0,2.586792]
[1693958712666,0.022,25796.0,25795.0,2.588352]
[1693958712908,0.022,25796.0,25795.0,2.591472]
[1693958713084,0.022,25796.0,25795.0,2.591232]
[1693958713290,0.022,25796.0,25795.0,2.590992]
[1693958713634,0.022,25796.0,25795.0,2.586972]
[1693958713814,0.022,25796.0,25795.0,2.587212]
[1693958714121,0.022,25796.0,25795.0,2.586792]
[1693958714451,0.022,25796.0,25795.0,2.586132]
[1693958714719,0.022,25796.0,25795.0,2.584152]
[1693958715058,0.022,25796.0,25795.0,2.583852]
[1693958715260,0.022,25796.0,25795.0,2.583732]
[1693958715582,0.022,25796.0,25795.0,2.518032]
[1693958716184,0.022,25796.0,25795.0,2.586012]
[1693958716414,0.022,25796.0,25795.0,2.593932]
[1693958716588,0.022,25796.0,25795.0,2.595312]
[1693958716787,0.022,25796.0,25795.0,2.590332]
[1693958717271,0.022,25796.0,25795.0,2.591292]
[1693958717516,0.022,25796.0,25795.0,2.591412]
[1693958717718,0.022,25796.0,25795.0,2.591892]
[1693958718463,0.022,25796.0,25795.0,2.592012]
[1693958718643,0.022,25796.0,25795.0,2.592072]
[1693958718867,0.022,25796.0,25795.0,2.592132]
[1693958719069,0.022,25796.0,25795.0,2.592072]
[1693958719293,0.022,25796.0,25795.0,2.592432]
[1693958719471,0.022,25796.0,25795.0,2.592252]
[1693958719905,0.022,25796.0,25795.0,2.592492]
[1693958720111,0.022,25796.0,25795.0,2.592672]
[1693958720315,0.022,25796.0,25795.0,2.592732]
[1693958720516,0.022,25796.0,25795.0,2.592672]
[1693958720721,0.022,25796.0,25795.0,2.593212]
[1693958720924,0.022,25796.0,25795.0,2.593572]
[1693958721258,0.022,25796.0,25795.0,2.594352]
[1693958721485,0.022,25796.0,25795.0,2.594712]
[1693958721688,0.022,25796.0,25795.0,2.598672]
[1693958721859,0.022,25796.0,25795.0,2.82439029]
[1693958722072,0.022,25796.0,25795.0,2.84023029]
[1693958722266,0.022,25796.0,25795.0,2.84017029]
[1693958722530,0.022,25796.0,25795.0,2.84065029]
[1693958722938,0.022,25796.0,25795.0,2.83885029]
[1693958723140,0.022,25796.0,25795.0,2.84149029]
[1693958723352,0.022,25796.0,25795.0,2.84137029]
[1693958723558,0.022,25796.0,25795.0,2.84179029]
[1693958723761,0.022,25796.0,25795.0,2.84047029]
[1693958724015,0.022,25796.0,25795.0,2.84173029]
[1693958724232,0.022,25796.0,25795.0,2.84161029]
[1693958724443,0.022,25796.0,25795.0,2.84935029]
[1693958724653,0.022,25796.0,25795.0,2.85223029]
[1693958724857,0.022,25796.0,25795.0,2.85271029]
[1693958725059,0.022,25796.0,25795.0,2.85151029]
[1693958725284,0.022,25796.0,25795.0,2.84935029]
[1693958725496,0.022,25796.0,25795.0,2.748212]
[1693958725702,0.09277284,25799.0,25795.0,2.748372]
[1693958725883,0.009,25796.0,25795.0,2.90243011]
[1693958726116,0.014,25796.0,25795.0,2.99891185]
[1693958726321,0.014,25796.0,25795.0,2.88779185]
[1693958726571,0.014,25796.0,25795.0,2.97287185]
[1693958726757,0.014,25796.0,25795.0,2.97197185]
[1693958726973,0.014,25796.0,25795.0,2.97779185]
[1693958727274,0.005,25796.0,25795.0,2.98097185]
[1693958727911,0.005,25796.0,25795.0,2.98103185]
[1693958728113,0.005,25796.0,25795.0,2.98115185]
[1693958728292,0.005,25796.0,25795.0,2.98313185]
[1693958728425,0.005,25796.0,25795.0,2.98325185]
[1693958728628,0.005,25796.0,25795.0,2.98507185]
[1693958728828,0.005,25796.0,25795.0,2.98573185]
[1693958729039,0.02513016,25796.0,25795.0,2.98591185]
[1693958729244,0.02513016,25796.0,25795.0,2.98325185]
[1693958729445,0.03413016,25796.0,25795.0,2.98325185]
[1693958729720,0.03413016,25796.0,25795.0,2.98289185]
[1693958729927,0.03413016,25796.0,25795.0,2.98475185]
[1693958730356,0.03413016,25796.0,25795.0,2.98655185]
[1693958730475,0.03413016,25796.0,25795.0,2.98673185]
[1693958730685,0.03413016,25796.0,25795.0,2.98583185]
[1693958730885,0.03413016,25796.0,25795.0,2.98577185]
[1693958731139,0.03413016,25796.0,25795.0,2.98529185]
[1693958731332,0.03413016,25796.0,25795.0,2.98469185]
[1693958731857,0.03413016,25796.0,25795.0,2.98463185]
[1693958732264,0.03413016,25796.0,25795.0,2.98919185]
[1693958732472,0.03413016,25796.0,25795.0,2.99543185]
[1693958732670,0.03413016,25796.0,25795.0,3.00149185]
[1693958732928,0.2319321,25800.0,25797.0,0.12]
[1693958733140,0.2348576,25801.0,25795.0,3.62583538]
[1693958733141,0.04931191,25801.0,25800.0,3.23209386]
[1693958733348,0.04931191,25801.0,25800.0,3.80725197]
[1693958733564,0.06250583,25803.0,25801.0,0.04]
[1693958733770,0.06250583,25803.0,25802.0,2.4459]
[1693958733978,0.23265942,25805.0,25802.0,2.4459]
[1693958734186,0.67315322,25805.0,25802.0,2.66715811]
[1693958734393,0.06051471,25804.0,25802.0,2.51418]
[1693958734607,0.06051471,25804.0,25802.0,2.549567]
[1693958734821,0.06051471,25804.0,25802.0,2.549747]
[1693958735030,0.06051471,25804.0,25802.0,2.547587]
[1693958735243,0.06051471,25804.0,25802.0,2.549507]
[1693958735400,0.06051471,25804.0,25802.0,2.549807]
[1693958735607,0.61929898,25805.0,25802.0,2.45367529]
[1693958735802,0.61929898,25805.0,25802.0,2.45385529]
[1693958736008,0.61929898,25805.0,25802.0,2.45397529]
[1693958736209,0.61929898,25805.0,25802.0,2.45299895]
[1693958736593,0.61929898,25805.0,25802.0,2.45701895]
[1693958736797,0.61929898,25805.0,25802.0,2.45319895]
[1693958737011,0.61929898,25805.0,25802.0,2.45719895]
[1693958737186,0.61929898,25805.0,25802.0,2.45725895]
[1693958737419,0.61929898,25805.0,25802.0,2.555667]
[1693958737544,0.68630366,25805.0,25802.0,2.555247]
[1693958737768,0.09277284,25804.0,25803.0,0.18370563]
[1693958737979,0.09277284,25804.0,25803.0,2.50801332]
[1693958737980,0.11323372,25804.0,25803.0,2.50801332]
[1693958738627,0.11323372,25804.0,25803.0,2.41112161]
[1693958739056,0.11723372,25804.0,25803.0,2.41112161]
[1693958739304,0.12123372,25804.0,25803.0,2.41112161]
[1693958739907,0.12123372,25804.0,25803.0,2.31423365]
[1693958741159,0.12123372,25804.0,25803.0,2.84273365]
[1693958741361,0.12123372,25804.0,25803.0,2.91504839]
[1693958741536,0.12123372,25804.0,25803.0,3.00762839]
[1693958741537,0.02846088,25804.0,25803.0,3.00762839]
[1693958741761,0.02846088,25804.0,25803.0,3.00786839]
[1693958741938,0.004,25804.0,25803.0,3.00828839]
[1693958742143,0.00072161,25805.0,25803.0,3.00780839]
[1693958742345,0.00072161,25805.0,25803.0,3.02592839]
[1693958742546,0.00072161,25805.0,25804.0,2.40154]
[1693958742748,0.00072161,25805.0,25804.0,2.40166]
[1693958742953,0.00072161,25805.0,25804.0,2.30489204]
[1693958743154,0.00072161,25805.0,25804.0,2.30495204]
[1693958743356,0.00072161,25805.0,25804.0,2.31455204]
[1693958743493,0.00072161,25805.0,25804.0,2.34284335]
[1693958743696,0.00072161,25805.0,25804.0,2.34272335]
[1693958743899,0.00072161,25805.0,25804.0,2.35082335]
[1693958744101,0.00072161,25805.0,25804.0,2.35052335]
[1693958744307,0.00072161,25805.0,25804.0,2.44753131]
[1693958744535,0.00072161,25805.0,25804.0,2.44585131]
[1693958744742,0.00072161,25805.0,25804.0,2.44597131]
[1693958745135,0.00072161,25805.0,25804.0,2.44609131]
[1693958745355,0.00072161,25805.0,25804.0,2.45695131]
[1693958745603,0.00072161,25805.0,25804.0,2.45707131]
[1693958745823,0.00072161,25805.0,25804.0,2.35820711]
[1693958746042,0.00072161,25805.0,25804.0,2.35832711]
[1693958746186,0.00072161,25805.0,25804.0,2.35844711]
[1693958746399,0.00072161,25805.0,25804.0,2.35586711]
[1693958746612,0.00072161,25805.0,25804.0,2.35592711]
[1693958746846,0.00072161,25805.0,25804.0,2.35604711]
[1693958747076,0.23994266,25805.0,25804.0,2.1524516]
[1693958747287,0.71936077,25805.0,25804.0,1.764915]
[1693958748146,0.71936077,25805.0,25804.0,1.18361]
[1693958748373,0.69341257,25805.0,25804.0,0.021]
[1693958748573,1.38341476,25805.0,25803.0,0.6954338]
[1693958748776,0.52556206,25804.0,25803.0,1.8580828]
[1693958748971,0.74383454,25804.0,25803.0,1.8580828]
[1693958749593,0.74383454,25804.0,25803.0,1.8750828]
[1693958750005,0.74483454,25804.0,25803.0,1.8950828]
[1693958750208,0.74483454,25804.0,25803.0,1.78119484]
[1693958751559,0.74583454,25804.0,25803.0,1.70130688]
[1693958753012,0.71310775,25804.0,25803.0,1.11897957]
[1693958753234,0.73229982,25804.0,25803.0,1.199649]
[1693958754695,0.73229982,25804.0,25803.0,1.10276104]
[1693958755245,0.98551485,25804.0,25803.0,1.68408804]
[1693958755475,0.98551485,25804.0,25803.0,2.26541504]
[1693958755886,0.79996916,25804.0,25803.0,2.26541504]
[1693958756089,0.81346916,25804.0,25803.0,2.16852708]
[1693958756292,0.81346916,25804.0,25803.0,2.362308]
[1693958757482,0.81346916,25804.0,25803.0,2.26542004]
[1693958757483,0.56025413,25804.0,25803.0,2.26542004]
[1693958759231,0.56025413,25804.0,25803.0,2.325308]
[1693958759709,0.56025413,25804.0,25803.0,1.743981]
[1693958760364,0.56025413,25804.0,25803.0,2.325308]
[1693958760605,0.56025413,25804.0,25803.0,2.22842004]
[1693958762033,0.56025413,25804.0,25803.0,1.743981]
[1693958762276,0.56025413,25804.0,25803.0,2.390888]
[1693958762529,0.12739143,25804.0,25803.0,2.391788]
[1693958762774,0.12739143,25804.0,25803.0,2.390948]
[1693958763001,0.12739143,25804.0,25803.0,2.325308]
[1693958763699,0.12739143,25804.0,25803.0,2.22842004]
[1693958764383,0.12739143,25804.0,25803.0,2.41842004]
[1693958765228,0.12739143,25804.0,25803.0,2.515308]
[1693958766689,0.12739143,25804.0,25803.0,2.41842004]
[1693958768071,0.12739143,25804.0,25803.0,2.515308]
[1693958769105,0.12745336,25804.0,25803.0,2.515308]
[1693958769522,0.12745336,25804.0,25803.0,2.41842004]
[1693958770394,0.26637015,25804.0,25803.0,2.41842004]
[1693958771055,0.26637015,25804.0,25803.0,2.515308]
[1693958772404,0.26637015,25804.0,25803.0,2.41842004]
[1693958773850,0.26637015,25804.0,25803.0,2.515308]
[1693958775542,0.17367079,25804.0,25803.0,2.41842004]
[1693958776764,0.17367079,25804.0,25803.0,2.32153208]
[1693958777111,0.6668142,25809.0,25803.0,2.32153208]
[1693958777112,0.23748493,25810.0,25808.0,0.04]
[1693958777388,0.23748493,25810.0,25809.0,2.65942611]
[1693958777389,0.14238407,25810.0,25809.0,2.65942611]
[1693958777588,0.1403,25814.0,25809.0,2.77942611]
[1693958777797,0.04415186,25810.0,25809.0,2.324768]
[1693958778014,0.04415186,25810.0,25809.0,2.624768]
[1693958778230,0.01915186,25810.0,25809.0,2.624768]
[1693958778415,0.01915186,25810.0,25809.0,2.690588]
[1693958778416,0.11302848,25810.0,25809.0,2.690588]
[1693958778579,0.11402848,25810.0,25809.0,2.61116004]
[1693958778770,0.02015186,25810.0,25809.0,2.61152004]
[1693958779008,0.02015186,25810.0,25809.0,2.61086004]
[1693958779406,0.02015186,25810.0,25809.0,2.61776004]
[1693958779605,0.02015186,25810.0,25809.0,2.62148004]
[1693958779805,0.02015186,25810.0,25809.0,2.62154004]
[1693958780014,0.02015186,25810.0,25809.0,2.62334004]
[1693958780228,0.02115186,25810.0,25809.0,2.854748]
[1693958780431,0.02115186,25810.0,25809.0,2.854028]
[1693958780680,0.02115186,25810.0,25809.0,2.852888]
[1693958781083,0.02115186,25810.0,25809.0,2.852708]
[1693958781492,0.02115186,25810.0,25809.0,2.843228]
[1693958781697,0.02115186,25810.0,25809.0,2.75452257]
[1693958781905,0.02115186,25810.0,25809.0,2.76022257]
[1693958782111,0.02115186,25810.0,25809.0,2.76010257]
[1693958782315,0.02115186,25810.0,25809.0,2.75956257]
[1693958782490,0.02115186,25810.0,25809.0,2.75986257]
[1693958782702,0.02115186,25810.0,25809.0,2.75956257]
[1693958782938,0.02115186,25810.0,25809.0,2.75950257]
[1693958783115,0.02115186,25810.0,25809.0,2.75944257]
[1693958783273,0.02115186,25810.0,25809.0,2.856188]
[1693958783478,0.02115186,25810.0,25809.0,2.855288]
[1693958783679,0.03712271,25810.0,25809.0,2.854988]
[1693958783911,0.03712271,25810.0,25809.0,2.851628]
[1693958784098,0.02115186,25810.0,25809.0,2.848148]
[1693958784294,0.03712271,25810.0,25809.0,2.848448]
[1693958784500,0.03712271,25810.0,25809.0,2.848208]
[1693958784705,0.03712271,25810.0,25809.0,2.75122257]
[1693958784933,0.03712271,25810.0,25809.0,2.75116257]
[1693958785145,0.03712271,25810.0,25809.0,2.75086257]
[1693958785340,0.03712271,25810.0,25809.0,2.75080257]
[1693958785544,0.03712271,25810.0,25809.0,2.75140257]
[1693958785764,0.03712271,25810.0,25809.0,2.75158257]
[1693958785981,0.03712271,25810.0,25809.0,2.75146257]
[1693958786190,0.03712271,25810.0,25809.0,2.75134257]
[1693958786419,0.03712271,25810.0,25809.0,2.848388]
[1693958786595,0.03712271,25810.0,25809.0,3.038028]
[1693958786750,0.03712271,25810.0,25809.0,3.038388]
[1693958786949,0.03712271,25810.0,25809.0,3.038328]
[1693958787226,0.03712271,25810.0,25809.0,3.038268]
[1693958787358,0.03712271,25810.0,25809.0,3.038028]
[1693958787553,0.03712271,25810.0,25809.0,3.044328]
[1693958787781,0.03712271,25810.0,25809.0,2.94794257]
[1693958787977,0.03712271,25810.0,25809.0,2.94686257]
[1693958788223,0.03712271,25810.0,25809.0,2.94488257]
[1693958788551,0.03712271,25810.0,25809.0,2.94458257]
[1693958788754,0.03712271,25810.0,25809.0,2.94542257]
[1693958788937,0.03712271,25810.0,25809.0,2.94482257]
[1693958789141,0.03712271,25810.0,25809.0,3.041628]
[1693958789344,0.03712271,25810.0,25809.0,3.040728]
[1693958789554,0.03712271,25810.0,25809.0,3.038148]
[1693958789987,0.03712271,25810.0,25809.0,3.038088]
[1693958790164,0.03712271,25810.0,25809.0,3.038028]
[1693958790367,0.03712271,25810.0,25809.0,3.038928]
[1693958790735,0.03712271,25810.0,25809.0,2.94194257]
[1693958791121,0.03712271,25810.0,25809.0,2.94188257]
[1693958791419,0.03712271,25810.0,25809.0,2.94338257]
[1693958791635,0.03712271,25810.0,25809.0,2.94332257]
[1693958791838,0.03712271,25810.0,25809.0,2.94140257]
[1693958792042,0.03712271,25810.0,25809.0,2.732388]
[1693958792043,0.04170457,25810.0,25809.0,2.732388]
[1693958792241,0.01797085,25810.0,25809.0,2.663268]
[1693958792696,0.03795831,25810.0,25809.0,2.737128]
[1693958792904,0.03795831,25810.0,25809.0,2.738088]
[1693958793081,0.03795831,25810.0,25809.0,2.738508]
[1693958793313,0.03795831,25810.0,25809.0,2.739048]
[1693958793533,0.03795831,25810.0,25809.0,2.64272257]
[1693958793751,0.03795831,25810.0,25809.0,2.64368257]
[1693958793931,0.03795831,25810.0,25809.0,2.64374257]
[1693958794132,0.03795831,25810.0,25809.0,2.94452257]
[1693958794307,0.03795831,25810.0,25809.0,2.94680257]
[1693958794461,0.03795831,25810.0,25809.0,2.94926257]
[1693958794662,0.03795831,25810.0,25809.0,2.85203714]
[1693958794923,0.03795831,25810.0,25809.0,2.85263714]
[1693958795116,0.03795831,25810.0,25809.0,2.85311714]
[1693958795322,0.03795831,25810.0,25809.0,2.85287714]
[1693958795544,0.03811166,25810.0,25809.0,2.85287714]
[1693958795747,0.03811166,25810.0,25809.0,2.85299714]
[1693958795880,0.03811166,25810.0,25809.0,2.85281714]
[1693958796069,0.03811166,25810.0,25809.0,2.85083714]
[1693958796290,0.03811166,25810.0,25809.0,2.909128]
[1693958796493,0.03811166,25810.0,25809.0,3.030828]
[1693958796699,0.03811166,25810.0,25809.0,3.032568]
[1693958796907,0.03811166,25810.0,25809.0,3.032508]
[1693958797112,0.03811166,25810.0,25809.0,3.032688]
[1693958797312,0.03811166,25810.0,25809.0,3.033048]
[1693958797539,0.03811166,25810.0,25809.0,3.033168]
[1693958797918,0.03811166,25810.0,25809.0,3.033108]
[1693958798037,0.03811166,25810.0,25809.0,3.031008]
[1693958798465,0.03811166,25810.0,25809.0,3.030708]
[1693958798665,0.03811166,25810.0,25809.0,3.030768]
[1693958798876,0.03811166,25810.0,25809.0,3.030708]
[1693958799097,0.03811166,25810.0,25809.0,3.030108]
[1693958799296,0.03811166,25810.0,25809.0,3.030168]
[1693958799496,0.03811166,25810.0,25809.0,3.032868]
[1693958799770,0.03811166,25810.0,25809.0,3.032988]
[1693958799959,0.03811166,25810.0,25809.0,3.031548]
[1693958800124,0.03811166,25810.0,25809.0,3.031668]
[1693958800324,0.03811166,25810.0,25809.0,3.033108]
[1693958800549,0.03811166,25810.0,25809.0,3.032868]
[1693958800745,0.03811166,25810.0,25809.0,3.032388]
[1693958800946,0.03811166,25810.0,25809.0,3.032508]
[1693958801149,0.03811166,25810.0,25809.0,3.032448]
[1693958801365,0.03811166,25810.0,25809.0,3.032628]
[1693958801574,0.03811166,25810.0,25809.0,3.032568]
[1693958801774,0.03811166,25810.0,25809.0,3.033288]
[1693958801977,0.02214081,25810.0,25809.0,3.032868]
[1693958802320,0.02214081,25810.0,25809.0,3.032748]
[1693958802525,0.02214081,25810.0,25809.0,3.032688]
[1693958802735,0.02214081,25810.0,25809.0,3.032628]
[1693958802926,0.02214081,25810.0,25809.0,3.032448]
[1693958803137,0.02214081,25810.0,25809.0,3.032388]
[1693958803321,0.02214081,25810.0,25809.0,3.032268]
[1693958803548,0.02214081,25810.0,25809.0,3.032088]
[1693958803721,0.02214081,25810.0,25809.0,3.034608]
[1693958803926,0.03811644,25810.0,25809.0,3.034548]
[1693958804224,0.03811644,25810.0,25809.0,3.034308]
[1693958804655,0.03811644,25810.0,25809.0,3.057168]
[1693958804793,0.03811644,25810.0,25809.0,3.060768]
[1693958805039,0.02214081,25810.0,25809.0,3.060108]
[1693958805179,0.02214081,25810.0,25809.0,3.064908]
[1693958805388,0.02214081,25810.0,25809.0,3.064308]
[1693958805637,0.02214081,25810.0,25809.0,3.062268]
[1693958805842,0.02214081,25810.0,25809.0,3.062328]
[1693958806055,0.02214081,25810.0,25809.0,3.061368]
[1693958806268,0.02214081,25810.0,25809.0,3.490988]
[1693958806478,0.02214081,25810.0,25809.0,3.051588]
[1693958806691,0.02214081,25810.0,25809.0,3.041748]
[1693958806900,0.02214081,25810.0,25809.0,3.050388]
[1693958807109,0.02214081,25810.0,25809.0,3.049188]
[1693958807308,0.02214081,25810.0,25809.0,3.049008]
[1693958807515,0.02214081,25810.0,25809.0,3.049548]
[1693958807722,0.02214081,25810.0,25809.0,3.050268]
[1693958807925,0.02214081,25810.0,25809.0,3.050748]
[1693958808224,0.02214081,25810.0,25809.0,3.050868]
[1693958808462,0.02214081,25810.0,25809.0,3.050688]
[1693958808644,0.02214081,25810.0,25809.0,3.053208]
[1693958808887,0.02214081,25810.0,25809.0,3.053148]
[1693958809097,0.02214081,25810.0,25809.0,3.053088]
[1693958809309,0.02214081,25810.0,25809.0,3.051648]
[1693958809509,0.02214081,25810.0,25809.0,3.053028]
[1693958809916,0.02214081,25810.0,25809.0,3.052968]
[1693958810140,0.02214081,25810.0,25809.0,3.051588]
[1693958810359,0.02214081,25810.0,25809.0,3.051528]
[1693958810553,0.02214081,25810.0,25809.0,3.051468]
[1693958810771,0.02214081,25810.0,25809.0,3.051408]
[1693958810985,0.02214081,25810.0,25809.0,3.052548]
[1693958811197,0.02214081,25810.0,25809.0,3.050628]
[1693958811400,0.02214081,25810.0,25809.0,3.050928]
[1693958811605,0.02214081,25810.0,25809.0,3.046728]
[1693958812196,0.02214081,25810.0,25809.0,3.048408]
[1693958812400,0.02214081,25810.0,25809.0,3.048168]
[1693958812595,0.02214081,25810.0,25809.0,3.048768]
[1693958812770,0.02214081,25810.0,25809.0,3.049068]
[1693958812977,0.02214081,25810.0,25809.0,3.048828]
[1693958813180,0.02214081,25810.0,25809.0,3.048948]
[1693958813373,0.02214081,25810.0,25809.0,3.049068]
[1693958813577,0.02214081,25810.0,25809.0,3.055668]
[1693958813799,0.02214081,25810.0,25809.0,3.056628]
[1693958814000,0.02214081,25810.0,25809.0,3.055368]
[1693958814266,0.02214081,25810.0,25809.0,3.052908]
[1693958814459,0.02214081,25810.0,25809.0,3.052968]
[1693958814665,0.02214081,25810.0,25809.0,3.052908]
[1693958814870,0.02214081,25810.0,25809.0,3.083708]
[1693958815073,0.02214081,25810.0,25809.0,3.088928]
[1693958815343,0.02214081,25810.0,25809.0,3.088868]
[1693958815560,0.02214081,25810.0,25809.0,3.086588]
[1693958815697,0.02214081,25810.0,25809.0,3.077528]
[1693958815903,0.02214081,25810.0,25809.0,3.078608]
[1693958816119,0.02214081,25810.0,25809.0,3.080648]
[1693958816320,0.02214081,25810.0,25809.0,3.086468]
[1693958816525,0.02214081,25810.0,25809.0,3.085988]
[1693958816727,0.02214081,25810.0,25809.0,3.085808]
[1693958816929,0.02214081,25810.0,25809.0,3.085748]
[1693958817150,0.02214081,25810.0,25809.0,3.086108]
[1693958817348,0.02214081,25810.0,25809.0,3.082328]
[1693958817555,0.02214081,25810.0,25809.0,3.082628]
[1693958817729,0.02214081,25810.0,25809.0,3.087668]
[1693958817930,0.02214081,25810.0,25809.0,3.088748]
[1693958818128,0.02214081,25810.0,25809.0,3.088628]
[1693958818335,0.02214081,25810.0,25809.0,3.088568]
[1693958818530,0.02214081,25810.0,25809.0,3.088028]
[1693958818760,0.02214081,25810.0,25809.0,3.091148]
[1693958819304,0.02214081,25810.0,25809.0,3.284808]
[1693958819488,0.02214081,25810.0,25809.0,3.278148]
[1693958819683,0.02214081,25810.0,25809.0,3.279588]
[1693958819896,0.02214081,25810.0,25809.0,3.280248]
[1693958820024,0.02214081,25810.0,25809.0,3.278388]
[1693958820254,0.02214081,25810.0,25809.0,3.278208]
[1693958820459,0.02214081,25810.0,25809.0,3.268308]
[1693958820666,0.02214081,25810.0,25809.0,3.264168]
[1693958820869,0.02214081,25810.0,25809.0,3.263688]
[1693958821140,0.02214081,25810.0,25809.0,3.263868]
[1693958821288,0.02214081,25810.0,25809.0,3.270528]
[1693958821515,0.02214081,25810.0,25809.0,3.278748]
[1693958821701,0.02214081,25810.0,25809.0,3.281268]
[1693958821919,0.02214081,25810.0,25809.0,3.286008]
[1693958822336,0.02214081,25810.0,25809.0,3.285948]
[1693958822539,0.02214081,25810.0,25809.0,3.285708]
[1693958822794,0.02214081,25810.0,25809.0,3.830868]
[1693958822952,0.02214081,25810.0,25809.0,3.698568]
[1693958823115,0.02214081,25810.0,25809.0,3.229648]
[1693958823312,0.02214081,25810.0,25809.0,3.229708]
[1693958823517,0.02214081,25810.0,25809.0,3.228928]
[1693958823872,0.02214081,25810.0,25809.0,3.229288]
[1693958824305,0.02214081,25810.0,25809.0,3.229468]
[1693958824547,0.02214081,25810.0,25809.0,3.233668]
[1693958824878,0.02214081,25810.0,25809.0,3.231388]
[1693958825081,0.02214081,25810.0,25809.0,3.237448]
[1693958825351,0.02214081,25810.0,25809.0,3.268228]
[1693958825565,0.02214081,25810.0,25809.0,3.261808]
[1693958825765,0.02214081,25810.0,25809.0,3.265648]
[1693958826131,0.02214081,25810.0,25809.0,3.265408]
[1693958826333,0.02214081,25810.0,25809.0,3.263128]
[1693958826530,0.02214081,25810.0,25809.0,3.262348]
[1693958826731,0.02214081,25810.0,25809.0,3.260608]
[1693958826937,0.02214081,25810.0,25809.0,3.260728]
[1693958827337,0.02214081,25810.0,25809.0,3.260848]
[1693958827662,0.02214081,25810.0,25809.0,3.265048]
[1693958827868,0.02214081,25810.0,25809.0,3.260848]
[1693958828074,0.02214081,25810.0,25809.0,3.260608]
[1693958828280,0.02214081,25810.0,25809.0,3.259948]
[1693958828483,0.02214081,25810.0,25809.0,3.260848]
[1693958828680,0.02214081,25810.0,25809.0,3.261328]
[1693958828885,0.02214081,25810.0,25809.0,3.265168]
[1693958829081,0.02214081,25810.0,25809.0,3.264088]
[1693958829293,0.02214081,25810.0,25809.0,3.265588]
[1693958829442,0.02214081,25810.0,25809.0,3.266368]
[1693958829644,0.02214081,25810.0,25809.0,3.266428]
[1693958829989,0.02214081,25810.0,25809.0,3.268948]
[1693958830198,0.02214081,25810.0,25809.0,3.269128]
[1693958830396,0.02214081,25810.0,25809.0,3.269248]
[1693958830601,0.02214081,25810.0,25809.0,3.269368]
[1693958830777,0.02214081,25810.0,25809.0,3.269308]
[1693958830981,0.02214081,25810.0,25809.0,3.267148]